bitfinex-derivatives/quotes_SOLF0:USTF0_20240910
["timestamp","ask_amount","ask_price","bid_price","bid_amount"]
[1725983356579,32.918,135.47,135.34,25.53]
[1725983356580,25.53,135.45,135.34,25.53]
[1725983356786,3.68959701,135.44,135.34,25.53]
[1725983357008,3.68959701,135.44,135.37,3.6933]
[1725983357581,3.68959701,135.44,135.38,3.6929]
[1725983357979,3.68959701,135.44,135.35,3.70141791]
[1725983358388,3.68959701,135.44,135.34,25.53]
[1725983358592,32.918,135.47,135.35,3.64526865]
[1725983358782,32.918,135.47,135.34,25.53]
[1725983358985,3.71877985,135.46,135.34,25.53]
[1725983359175,3.71877985,135.46,135.37,25.53]
[1725983359781,32.918,135.47,135.37,25.53]
[1725983360588,25.53,135.45,135.34,25.53]
[1725983360789,3.60869776,135.44,135.34,25.53]
[1725983360991,3.60869776,135.44,135.38,3.6929]
[1725983361281,3.72062686,135.46,135.34,25.53]
[1725983361696,3.72062686,135.46,135.36,25.53]
[1725983361987,3.72062686,135.46,135.4,3.6924]
[1725983362198,32.918,135.47,135.36,25.53]
[1725983362395,3.66854104,135.46,135.36,29.27685447]
[1725983363388,3.66854104,135.46,135.4,3.6924]
[1725983363589,7.388,135.47,135.36,29.27685447]
[1725983363984,7.388,135.47,135.38,25.53]
[1725983364593,7.388,135.47,135.42,3.6918]
[1725983365215,7.388,135.47,135.43,3.6917]
[1725983365496,7.388,135.47,135.38,25.53]
[1725983367301,7.388,135.47,135.42,3.6919]
[1725983367704,7.388,135.47,135.43,3.6915]
[1725983367888,7.388,135.47,135.38,25.53]
[1725983368253,23.348,135.47,135.37,15.96]
[1725983369806,7.388,135.47,135.39,15.96]
[1725983370393,1.3816,135.52,135.41,15.96]
[1725983370394,24.7296,135.52,135.41,15.96]
[1725983370696,24.7296,135.52,135.44,3.6914]
[1725983371101,24.7296,135.52,135.41,15.96]
[1725983371298,15.96,135.49,135.42,3.6918]
[1725983373405,23.348,135.47,135.41,3.6922]
[1725983373613,23.348,135.47,135.37,19.70575269]
[1725983374213,23.348,135.47,135.42,3.692]
[1725983375211,23.348,135.47,135.41,3.6922]
[1725983375914,1.2712,135.46,135.41,3.6922]
[1725983376114,1.2712,135.46,135.37,19.70575269]
[1725983376717,1.2712,135.46,135.43,3.6917]
[1725983377516,1.2712,135.46,135.42,3.6918]
[1725983377711,1.2712,135.46,135.39,15.96]
[1725983377913,1.2712,135.46,135.42,3.6917]
[1725983378245,7.388,135.48,135.39,15.96]
[1725983378611,7.388,135.48,135.43,3.6916]
[1725983379409,7.388,135.48,135.39,15.96]
[1725983380226,1.2894,135.47,135.39,15.96]
[1725983381917,1.2894,135.47,135.42,3.692]
[1725983382317,24.6374,135.47,135.37,19.70575269]
[1725983382520,24.6374,135.47,135.41,3.6921]
[1725983382918,24.6374,135.47,135.37,19.70575269]
[1725983383611,24.6374,135.47,135.37,3.74575269]
[1725983383917,24.6374,135.47,135.42,3.6919]
[1725983385259,15.96,135.45,135.28,3.67198041]
[1725983385389,23.348,135.43,135.37,3.6933]
[1725983385523,23.348,135.43,135.34,15.96]
[1725983386020,27.03862595,135.43,135.37,3.6932]
[1725983386625,27.03862595,135.43,135.38,3.693]
[1725983387225,27.03862595,135.43,135.34,15.96]
[1725983387721,27.03862595,135.43,135.33,3.6145458]
[1725983387927,27.03862595,135.43,135.32,15.96]
[1725983388133,27.03862595,135.43,135.37,3.6931]
[1725983388624,27.03862595,135.43,135.34,15.96]
[1725983388825,27.03862595,135.43,135.38,3.6929]
[1725983389421,7.388,135.43,135.34,15.96]
[1725983389725,7.388,135.43,135.36,15.96]
[1725983389925,7.388,135.43,135.39,3.6926]
[1725983390330,7.388,135.43,135.36,15.96]
[1725983390626,7.388,135.43,135.39,3.6926]
[1725983391032,7.388,135.43,135.4,3.6925]
[1725983392431,1.2747,135.44,135.41,3.6921]
[1725983392630,1.2747,135.44,135.36,15.96]
[1725983392827,1.2747,135.44,135.41,3.692]
[1725983393025,1.2747,135.44,135.36,15.96]
[1725983393437,1.2747,135.44,135.41,3.6921]
[1725983393627,1.2747,135.44,135.36,15.96]
[1725983394924,1.2747,135.44,135.38,3.693]
[1725983395332,1.2747,135.44,135.33,15.96]
[1725983395434,1.2747,135.44,135.33,19.7074089]
[1725983395635,15.96,135.43,135.33,19.7074089]
[1725983397126,15.96,135.43,135.37,3.6932]
[1725983397532,15.96,135.43,135.33,19.7074089]
[1725983397953,15.96,135.43,135.36,3.6934]
[1725983398834,15.96,135.43,135.37,3.6933]
[1725983399034,15.96,135.43,135.33,19.7074089]
[1725983399534,15.96,135.43,135.38,3.6931]
[1725983400136,15.96,135.43,135.37,3.6932]
[1725983400633,15.96,135.43,135.33,19.7074089]
[1725983400939,15.96,135.4,135.29,15.96]
[1725983401135,2.6727,135.39,135.29,19.7053756]
[1725983401333,2.6727,135.39,135.36,3.6936]
[1725983401534,1.2756,135.39,135.31,15.96]
[1725983402135,15.96,135.38,135.23,7.3939]
[1725983402335,17.2978,135.38,135.32,3.6947]
[1725983402535,1.2892,135.37,135.27,15.96]
[1725983402740,1.2892,135.37,135.29,15.96]
[1725983402943,1.2892,135.37,135.3,3.64080365]
[1725983403139,1.3378,135.38,135.31,15.96]
[1725983403387,1.3378,135.38,135.31,19.59969512]
[1725983403638,1.2756,135.39,135.33,15.96]
[1725983403944,1.3378,135.42,135.33,15.96]
[1725983404662,1.3378,135.42,135.34,3.74694623]
[1725983405137,1.3378,135.42,135.33,15.96]
[1725983405335,1.3378,135.42,135.37,3.6931]
[1725983405840,1.3378,135.42,135.33,15.96]
[1725983405841,1.3378,135.42,135.33,19.62233419]
[1725983406247,17.2978,135.42,135.33,15.96]
[1725983406664,15.96,135.4,135.29,15.96]
[1725983406943,3.73512271,135.39,135.29,15.96]
[1725983407146,15.96,135.37,135.32,3.6946]
[1725983407347,1.3223,135.36,135.32,3.6946]
[1725983407650,1.3223,135.36,135.3,3.6951]
[1725983407848,1.3223,135.36,135.27,19.6711062]
[1725983408251,17.2823,135.36,135.3,3.6952]
[1725983408550,15.96,135.34,135.19,3.709092]
[1725983408751,15.96,135.32,135.22,15.96]
[1725983408949,15.96,135.32,135.17,11.08981477]
[1725983409147,1.2783,135.31,135.21,15.96]
[1725983409860,15.96,135.3,135.21,15.96]
[1725983409955,18.573,135.3,135.2,22.21749537]
[1725983410249,22.19021002,135.3,135.2,15.96]
[1725983410845,22.19021002,135.3,135.22,3.6972]
[1725983411141,22.19021002,135.3,135.2,15.96]
[1725983411343,22.19021002,135.3,135.17,3.69261477]
[1725983411546,22.19021002,135.3,135.18,15.96]
[1725983411547,15.96,135.28,135.18,15.96]
[1725983411741,15.96,135.28,135.21,3.6975]
[1725983411943,18.573,135.3,135.2,19.67255126]
[1725983412139,22.22379251,135.3,135.2,15.96]
[1725983412866,18.573,135.3,135.2,19.68993246]
[1725983412968,3.7798572,135.29,135.2,3.72993246]
[1725983413148,15.96,135.28,135.16,15.96]
[1725983413350,3.70293612,135.27,135.15,6.2535434]
[1725983413549,3.70293612,135.27,135.13,3.63526037]
[1725983413550,15.96,135.29,135.18,15.96]
[1725983413751,3.68740398,135.28,135.18,15.96]
[1725983414354,15.96,135.28,135.21,3.6975]
[1725983414553,3.71689414,135.27,135.21,3.6975]
[1725983414749,3.71689414,135.27,135.18,19.56853095]
[1725983415148,3.71689414,135.27,135.18,3.60853095]
[1725983415449,15.96,135.28,135.21,3.6975]
[1725983415654,15.96,135.28,135.17,15.96]
[1725983415952,3.73094806,135.27,135.21,3.6975]
[1725983416152,15.96,135.28,135.17,19.64397836]
[1725983416549,15.96,135.28,135.2,3.6978]
[1725983416753,19.66210053,135.28,135.2,3.6978]
[1725983417350,3.70210053,135.28,135.17,19.64397836]
[1725983417658,15.96,135.27,135.17,19.64397836]
[1725983417864,3.73926794,135.26,135.17,19.64397836]
[1725983418051,3.73926794,135.26,135.21,3.6975]
[1725983418251,23.348,135.27,135.15,15.96]
[1725983418451,17.3409,135.25,135.16,3.62718977]
[1725983418658,15.96,135.23,135.13,15.96]
[1725983419066,15.96,135.23,135.14,3.72077319]
[1725983419360,15.96,135.23,135.14,3.61202408]
[1725983419560,15.96,135.23,135.17,3.6987]
[1725983419761,15.96,135.23,135.14,3.61202408]
[1725983420056,15.96,135.23,135.13,4.96]
[1725983420057,15.96,135.23,135.15,3.6991]
[1725983420254,15.96,135.21,135.11,15.96]
[1725983420452,15.96,135.21,135.12,3.72538612]
[1725983420657,15.96,135.21,135.11,15.96]
[1725983421151,15.96,135.19,135.09,15.96]
[1725983421358,15.96,135.19,135.07,6.25801745]
[1725983421359,2.6753,135.18,135.07,6.25801745]
[1725983421555,7.68646706,135.18,135.12,3.6999]
[1725983421896,7.68646706,135.18,135.09,15.96]
[1725983422129,7.68646706,135.18,135.09,19.69167712]
[1725983423555,7.68646706,135.18,135.11,3.7002]
[1725983423760,15.96,135.17,135.07,15.96]
[1725983423964,7.68646706,135.18,135.08,15.96]
[1725983424160,7.68646706,135.18,135.12,3.7]
[1725983424684,7.68646706,135.18,135.1,3.7006]
[1725983424957,15.96,135.17,135.07,3.69724611]
[1725983425196,23.348,135.17,135.07,3.69724611]
[1725983425467,7.388,135.17,135.04,15.96]
[1725983425577,15.96,135.15,135.05,3.70020746]
[1725983425761,15.96,135.15,135.08,3.7012]
[1725983425962,15.96,135.15,135.05,3.70020746]
[1725983426161,15.96,135.15,135.07,3.7014]
[1725983426470,15.96,135.15,135.05,3.70020746]
[1725983426660,15.96,135.15,135.04,15.96]
[1725983427270,15.96,135.15,135.04,19.60549189]
[1725983428666,15.96,135.15,135.07,3.7014]
[1725983429263,15.96,135.15,135.04,19.60549189]
[1725983429778,15.96,135.15,135.07,3.7013]
[1725983430267,15.96,135.15,135.04,19.60549189]
[1725983431271,15.96,135.13,134.99,7.4073]
[1725983431474,3.8623,135.12,135.02,15.96]
[1725983431686,15.96,135.07,134.96,3.37367159]
[1725983431975,15.96,135.09,134.98,15.96]
[1725983432175,7.62775323,135.12,134.97,7.4083]
[1725983432376,23.58775323,135.12,135.01,15.96]
[1725983432668,15.96,135.1,135.01,15.96]
[1725983432870,15.96,135.1,135.02,3.78285503]
[1725983433077,23.58775323,135.12,135.03,15.96]
[1725983433270,23.58775323,135.12,135.01,19.68435536]
[1725983433573,23.58775323,135.12,135.03,15.96]
[1725983434171,3.8623,135.12,135.03,15.96]
[1725983434649,3.68316001,135.11,135.01,19.68435536]
[1725983434781,19.8223,135.12,135.01,19.68435536]
[1725983434966,19.8223,135.12,135.03,15.96]
[1725983435264,23.53360117,135.12,135.01,3.72435536]
[1725983435469,15.96,135.1,134.99,15.96]
[1725983435675,15.96,135.1,135.0,3.75943737]
[1725983435873,15.96,135.1,134.99,15.96]
[1725983436073,7.57360117,135.12,135.0,3.75092097]
[1725983436270,15.96,135.09,135.0,3.68464112]
[1725983436675,15.96,135.07,134.97,15.96]
[1725983436877,15.96,135.07,134.98,3.6702752]
[1725983437388,2.7014,135.06,134.98,3.6702752]
[1725983438475,2.7014,135.06,134.94,3.37367159]
[1725983438476,15.96,135.05,134.94,19.33367159]
[1725983438676,15.96,135.05,134.95,2.08488022]
[1725983439181,15.96,135.05,134.96,3.77434658]
[1725983439182,15.96,135.04,134.96,3.77434658]
[1725983439380,15.96,135.04,134.94,15.96]
[1725983439578,3.69583009,135.03,134.93,3.37367159]
[1725983439884,15.96,135.01,134.93,5.45929383]
[1725983440074,15.96,135.01,134.96,3.7044]
[1725983440268,19.74760104,135.01,134.92,3.37367159]
[1725983440473,15.96,134.99,134.92,3.37367159]
[1725983440779,15.96,134.97,134.89,3.37367159]
[1725983440992,1.3718,134.96,134.89,3.37367159]
[1725983441174,17.79,134.94,134.86,3.61828345]
[1725983441382,19.1618,134.96,134.85,17.79]
[1725983442272,17.79,134.93,134.82,3.65570375]
[1725983442474,1.3682,134.92,134.82,17.79]
[1725983442673,1.3682,134.92,134.82,21.44681525]
[1725983444991,28.49,134.95,134.9,3.7062]
[1725983446291,28.49,134.95,134.87,3.76640122]
[1725983446488,2.74,134.96,134.86,28.49]
[1725983446675,2.74,134.96,134.86,32.23452725]
[1725983446986,28.49,134.95,134.86,3.74452725]
[1725983447183,2.74,134.96,134.82,28.49]
[1725983447382,28.49,134.94,134.82,32.11959621]
[1725983447777,28.49,134.94,134.87,3.7069]
[1725983447978,28.49,134.92,134.82,32.11959621]
[1725983448380,28.49,134.94,134.82,32.11959621]
[1725983449383,28.49,134.94,134.89,3.7063]
[1725983450183,28.49,134.92,134.82,3.62959621]
[1725983450377,1.3113,134.91,134.8,28.49]
[1725983451090,28.49,134.94,134.82,28.49]
[1725983451889,28.49,134.94,134.9,3.706]
[1725983452183,1.3113,134.95,134.82,32.23026229]
[1725983452389,1.3113,134.95,134.84,28.49]
[1725983452988,1.3113,134.95,134.9,3.706]
[1725983453188,1.3113,134.95,134.84,32.16334416]
[1725983453382,28.49,134.94,134.84,3.67334416]
[1725983453587,28.49,134.94,134.82,28.49]
[1725983453992,28.49,134.94,134.88,3.7066]
[1725983454496,28.49,134.94,134.82,32.20597986]
[1725983455795,28.49,134.91,134.82,3.71597986]
[1725983455991,1.3808,134.9,134.88,3.7067]
[1725983456198,1.3808,134.9,134.81,32.2848813]
[1725983456599,28.49,134.93,134.81,32.2848813]
[1725983457193,1.3808,134.94,134.83,28.49]
[1725983457395,1.3808,134.94,134.9,3.706]
[1725983458099,29.8708,134.94,134.88,3.7066]
[1725983458290,29.8708,134.94,134.81,3.7948813]
[1725983458291,28.49,134.92,134.81,32.2848813]
[1725983458595,28.49,134.92,134.81,28.49]
[1725983458986,28.49,134.92,134.81,32.14885817]
[1725983459695,29.8708,134.94,134.84,28.49]
[1725983460100,29.8708,134.94,134.88,3.7066]
[1725983460400,28.49,134.91,134.81,32.14885817]
[1725983460606,1.3415,134.9,134.85,3.7074]
[1725983460801,28.49,134.87,134.72,7.4221]
[1725983460997,29.7797,134.89,134.77,28.49]
[1725983461403,28.49,134.87,134.75,28.49]
[1725983461905,28.49,134.87,134.78,3.7094]
[1725983462205,28.49,134.87,134.74,3.62066007]
[1725983462206,28.49,134.84,134.77,3.7098]
[1725983462506,1.3686,134.83,134.74,3.62066007]
[1725983462906,1.3686,134.83,134.78,3.7095]
[1725983463305,1.3686,134.83,134.74,3.62066007]
[1725983463502,1.3686,134.83,134.75,28.49]
[1725983463806,28.49,134.87,134.75,28.49]
[1725983464106,1.3686,134.86,134.75,28.49]
[1725983464612,1.3686,134.86,134.83,3.708]
[1725983464906,28.49,134.84,134.74,3.62066007]
[1725983465617,1.3686,134.86,134.74,32.11066007]
[1725983465803,1.3686,134.86,134.75,2.7267633]
[1725983466004,1.3686,134.86,134.75,1.36341775]
[1725983466306,1.3686,134.86,134.79,3.7091]
[1725983466503,28.49,134.83,134.75,1.36341775]
[1725983466808,29.8586,134.86,134.75,1.36341775]
[1725983467008,29.8275,134.88,134.76,37.27325076]
[1725983467210,1.2897,134.89,134.88,3.7068]
[1725983467906,28.49,134.9,134.89,3.7065]
[1725983468104,19.143,134.93,134.83,3.6378551]
[1725983468300,7.388,134.99,134.83,3.6378551]
[1725983468301,2.6021,134.99,134.87,17.79]
[1725983468496,17.79,134.97,134.93,3.7054]
[1725983468698,17.79,134.95,134.85,17.79]
[1725983468902,17.79,134.91,134.83,17.79]
[1725983469405,17.79,134.91,134.82,3.63451591]
[1725983469708,17.79,134.91,134.87,3.7068]
[1725983469908,17.79,134.89,134.82,3.70134203]
[1725983470111,28.48,134.9,134.78,28.48]
[1725983470299,1.3203,134.93,134.77,7.4193]
[1725983470502,28.48,134.88,134.77,7.4193]
[1725983471004,28.48,134.88,134.76,28.48]
[1725983471507,2.5798,134.92,134.75,1.36341775]
[1725983471508,28.48,134.86,134.75,1.36341775]
[1725983473010,28.48,134.84,134.75,1.36341775]
[1725983473513,28.48,134.82,134.75,1.36341775]
[1725983473700,28.48,134.82,134.74,3.62066007]
[1725983473904,28.48,134.84,134.74,3.62066007]
[1725983474100,1.2758,134.85,134.8,3.7087]
[1725983474307,28.48,134.84,134.8,3.7087]
[1725983474512,28.48,134.84,134.78,3.7093]
[1725983475409,28.48,134.84,134.73,3.64362165]
[1725983475603,28.48,134.84,134.72,28.48]
[1725983475799,28.48,134.84,134.78,3.7093]
[1725983476013,28.48,134.84,134.74,3.65036967]
[1725983476210,1.2758,134.85,134.72,28.48]
[1725983476417,1.2758,134.85,134.72,32.23537624]
[1725983476607,1.2758,134.85,134.74,28.48]
[1725983477111,1.2758,134.85,134.82,3.7082]
[1725983477411,1.2758,134.85,134.75,1.2907]
[1725983478107,1.2758,134.85,134.83,3.708]
[1725983478317,1.2758,134.85,134.75,1.2907]
[1725983480321,1.2758,134.85,134.81,3.7084]
[1725983480505,1.2758,134.85,134.75,1.2907]
[1725983480713,28.48,134.83,134.78,3.7092]
[1725983481018,28.48,134.83,134.74,3.79396522]
[1725983481209,1.2758,134.85,134.72,28.48]
[1725983481406,1.2758,134.85,134.72,32.14894602]
[1725983482215,28.48,134.82,134.72,3.66894602]
[1725983482418,28.48,134.8,134.75,3.7101]
[1725983482622,1.3826,134.79,134.71,5.02086267]
[1725983482925,1.3826,134.79,134.71,1.2819]
[1725983483214,1.3826,134.79,134.71,5.03087974]
[1725983483415,1.3826,134.79,134.71,1.2819]
[1725983483620,1.2909,134.78,134.71,1.2819]
[1725983483919,1.2909,134.78,134.71,4.99711852]
[1725983485715,1.2909,134.78,134.74,3.7104]
[1725983485912,1.2909,134.78,134.71,4.99711852]
[1725983486121,1.2909,134.78,134.66,28.48]
[1725983486122,28.48,134.77,134.66,28.48]
[1725983486425,28.48,134.77,134.67,1.3037]
[1725983486622,28.48,134.77,134.67,5.03356229]
[1725983486819,28.48,134.77,134.74,3.7106]
[1725983487127,1.2909,134.78,134.68,28.48]
[1725983488415,29.7709,134.78,134.68,28.48]
[1725983489621,29.7709,134.78,134.74,3.7105]
[1725983489926,1.2909,134.78,134.74,3.73709748]
[1725983490124,1.3927,134.81,134.74,3.73709748]
[1725983490426,2.6217,134.84,134.74,3.73709748]
[1725983490720,2.6217,134.84,134.73,1.3477]
[1725983490926,2.6217,134.84,134.75,28.48]
[1725983491319,2.6217,134.84,134.75,32.20484835]
[1725983491518,28.48,134.88,134.77,28.48]
[1725983492519,2.6541,134.92,134.79,28.48]
[1725983492520,28.48,134.91,134.79,28.48]
[1725983492722,28.48,134.91,134.81,28.48]
[1725983492922,28.48,134.91,134.88,3.7065]
[1725983493332,28.48,134.91,134.81,28.48]
[1725983494021,28.48,134.91,134.88,3.7066]
[1725983494332,28.48,134.91,134.81,28.48]
[1725983494623,28.48,134.91,134.88,3.7067]
[1725983494828,2.6541,134.92,134.84,3.69539546]
[1725983495020,2.6541,134.92,134.81,28.48]
[1725983495418,2.6541,134.92,134.8,1.3335]
[1725983495623,28.48,134.88,134.77,28.48]
[1725983495821,28.48,134.88,134.76,1.2714]
[1725983496221,28.48,134.88,134.83,3.7079]
[1725983496422,28.48,134.86,134.69,226.0]
[1725983496630,28.48,134.86,134.7,2.63487515]
[1725983496816,28.48,134.86,134.73,28.48]
[1725983497627,1.2695,134.85,134.73,28.48]
[1725983498135,28.48,134.81,134.71,28.48]
[1725983499221,1.2695,134.85,134.71,28.48]
[1725983499421,28.48,134.84,134.71,28.48]
[1725983499621,28.48,134.84,134.74,3.7104]
[1725983499926,28.48,134.84,134.71,28.48]
[1725983500130,28.48,134.82,134.76,3.7099]
[1725983500335,28.48,134.82,134.71,28.48]
[1725983501429,1.2657,134.81,134.71,28.48]
[1725983501630,2.5729,134.81,134.71,28.48]
[1725983501831,2.5729,134.81,134.7,4.93750223]
[1725983502431,2.5729,134.81,134.76,3.7099]
[1725983502830,2.5729,134.81,134.77,3.7097]
[1725983503025,2.5729,134.81,134.71,28.48]
[1725983503226,2.5729,134.81,134.73,28.48]
[1725983503437,28.48,134.84,134.73,28.48]
[1725983503942,1.2695,134.85,134.73,28.48]
[1725983504135,1.2695,134.85,134.74,1.3254]
[1725983504327,1.2695,134.85,134.74,2.6712]
[1725983504526,1.2695,134.85,134.82,3.7082]
[1725983504740,1.2695,134.85,134.77,3.64870881]
[1725983504930,1.2695,134.85,134.79,3.7092]
[1725983505438,1.2695,134.85,134.77,3.62125259]
[1725983505640,28.48,134.84,134.7,4.93750223]
[1725983505834,28.48,134.84,134.71,28.48]
[1725983506531,28.48,134.84,134.72,6.31092545]
[1725983506739,28.48,134.82,134.7,6.22430223]
[1725983506927,28.48,134.82,134.72,6.31111253]
[1725983507136,28.48,134.82,134.7,12.53541476]
[1725983507330,28.48,134.82,134.71,6.31111253]
[1725983507526,28.48,134.82,134.72,6.31111253]
[1725983507730,28.48,134.84,134.72,6.31111253]
[1725983507932,28.48,134.84,134.78,3.7093]
[1725983508128,28.48,134.84,134.72,6.31111253]
[1725983508329,28.48,134.84,134.8,3.7089]
[1725983509531,1.2695,134.85,134.82,3.7084]
[1725983509733,1.2695,134.85,134.76,6.30393004]
[1725983509931,1.2695,134.85,134.75,6.30393004]
[1725983510129,1.2695,134.85,134.76,6.30393004]
[1725983510334,1.2695,134.85,134.75,6.30393004]
[1725983510530,1.2695,134.85,134.74,1.3449]
[1725983510531,1.2695,134.85,134.81,3.7085]
[1725983510732,1.2695,134.85,134.75,6.3031054]
[1725983510938,28.48,134.84,134.76,3.7099]
[1725983511134,28.48,134.84,134.73,28.48]
[1725983511334,1.2695,134.85,134.74,6.30330136]
[1725983511544,1.2695,134.85,134.75,6.30330136]
[1725983511834,1.2695,134.85,134.74,6.30330136]
[1725983512039,1.2695,134.85,134.75,6.30330136]
[1725983512237,1.2695,134.85,134.76,6.30330136]
[1725983512432,1.2695,134.85,134.77,3.78774734]
[1725983512634,1.2695,134.85,134.82,3.7084]
[1725983512832,1.2695,134.85,134.78,3.69128204]
[1725983513036,1.2695,134.85,134.76,6.2993465]
[1725983513236,1.2695,134.85,134.77,6.2993465]
[1725983513542,1.2695,134.85,134.75,28.48]
[1725983513740,1.2695,134.85,134.8,3.7087]
[1725983513939,1.2695,134.85,134.75,28.48]
[1725983514146,1.2695,134.85,134.76,6.3008467]
[1725983514444,1.2695,134.85,134.75,28.48]
[1725983514832,1.2695,134.85,134.82,3.7082]
[1725983515236,1.2695,134.85,134.81,3.7085]
[1725983517638,1.2695,134.85,134.82,3.7084]
[1725983518049,1.2695,134.85,134.77,3.6349807]
[1725983518243,1.2695,134.85,134.75,28.48]
[1725983518446,1.2695,134.85,134.76,6.14814563]
[1725983518644,1.2695,134.85,134.76,2.7316]
[1725983519150,2.6276,134.87,134.77,7.43535777]
[1725983519339,28.48,134.86,134.78,3.74517661]
[1725983519539,28.48,134.86,134.76,2.7316]
[1725983519736,1.3929,134.85,134.76,2.7316]
[1725983519947,1.3929,134.85,134.81,3.7085]
[1725983520844,28.48,134.84,134.75,6.14771706]
[1725983521146,1.3929,134.85,134.76,6.14531662]
[1725983521339,1.3929,134.85,134.73,28.48]
[1725983521745,1.3929,134.85,134.8,3.7088]
[1725983522250,1.3929,134.85,134.75,6.144166]
[1725983522447,1.3929,134.85,134.76,6.144166]
[1725983522642,1.2613,134.87,134.78,28.48]
[1725983522841,1.2613,134.87,134.78,3.77967542]
[1725983522842,28.48,134.86,134.78,3.77967542]
[1725983523037,1.2932,134.85,134.76,6.13780797]
[1725983523244,1.2932,134.85,134.77,6.13780797]
[1725983523444,1.2932,134.85,134.83,3.7079]
[1725983523644,1.2932,134.85,134.75,28.48]
[1725983523852,1.2657,134.86,134.84,3.7077]
[1725983524050,1.2613,134.87,134.81,3.62051947]
[1725983524249,1.2613,134.87,134.79,23.93415325]
[1725983524445,17.8,134.85,134.75,17.8]
[1725983524652,1.2932,134.84,134.75,17.8]
[1725983524865,17.8,134.83,134.79,3.7092]
[1725983525247,17.8,134.83,134.77,3.74480209]
[1725983525451,17.8,134.83,134.73,19.1538]
[1725983525656,2.5912,134.84,134.75,17.8]
[1725983525853,1.2932,134.84,134.76,6.13784617]
[1725983526053,1.2613,134.87,134.79,17.8]
[1725983526357,1.298,134.88,134.79,32.12834394]
[1725983526553,29.778,134.88,134.79,3.64834394]
[1725983526749,29.778,134.88,134.78,6.13607553]
[1725983526950,29.778,134.88,134.78,3.65504988]
[1725983527250,33.53763883,134.88,134.74,28.48]
[1725983527549,28.48,134.86,134.75,6.13815953]
[1725983527749,28.48,134.86,134.76,6.13815953]
[1725983527945,2.5718,134.85,134.74,28.48]
[1725983528150,2.5718,134.85,134.75,6.14036252]
[1725983528349,28.48,134.84,134.73,7.14965449]
[1725983528550,28.48,134.84,134.74,6.14168114]
[1725983528754,28.48,134.84,134.73,1.3538]
[1725983529056,28.48,134.84,134.74,6.14286351]
[1725983529250,28.48,134.84,134.73,1.3538]
[1725983529558,28.48,134.84,134.74,6.14247524]
[1725983529760,28.48,134.84,134.73,1.3538]
[1725983530155,28.48,134.84,134.74,6.14269815]
[1725983530360,28.48,134.84,134.75,6.14438937]
[1725983530550,28.48,134.84,134.73,1.3538]
[1725983530856,28.48,134.84,134.74,6.14496869]
[1725983531068,28.48,134.84,134.73,1.3538]
[1725983531354,28.48,134.84,134.74,6.14529693]
[1725983531554,3.7089,134.81,134.73,1.3538]
[1725983531754,28.48,134.84,134.74,6.1487899]
[1725983531958,3.7091,134.8,134.72,1.3769]
[1725983532158,28.48,134.84,134.73,6.15137932]
[1725983532457,28.48,134.84,134.74,6.15137932]
[1725983532659,28.48,134.84,134.72,1.3769]
[1725983532858,3.7094,134.79,134.73,6.15284015]
[1725983533055,3.7094,134.79,134.74,6.15284015]